bitfinex-derivatives/quotes_BTCF0:USTF0_20251129
["timestamp","ask_amount","ask_price","bid_price","bid_amount"]
[1764451623347,0.44764,91012.0,91011.0,0.4475]
[1764451623555,0.44964,91012.0,91011.0,0.4475]
[1764451627160,0.44964,91012.0,91011.0,0.46274703]
[1764451629862,0.44964,91012.0,91011.0,0.59010703]
[1764451632971,0.45076789,91012.0,91011.0,0.59010703]
[1764451662598,0.22496789,91012.0,91011.0,0.59010703]
[1764451662999,0.42258789,91012.0,91011.0,0.59010703]
[1764451668412,0.42258789,91012.0,91011.0,0.46274703]
[1764451669113,0.42258789,91012.0,91011.0,0.56321703]
[1764451670114,0.42258789,91012.0,91011.0,0.46274703]
[1764451670613,0.42258789,91012.0,91011.0,0.01524703]
[1764451670814,0.3747049,91011.0,91010.0,0.00016483]
[1764451671117,0.3747049,91011.0,91010.0,0.18267483]
[1764451671311,0.3747049,91011.0,91010.0,0.35757483]
[1764451671807,0.3747049,91011.0,91006.0,0.17304]
[1764451671808,0.0109854,91007.0,91006.0,0.17304]
[1764451672017,0.3747054,91007.0,91006.0,0.53045]
[1764451672810,0.3747054,91007.0,91006.0,0.35741]
[1764451673010,0.37583329,91007.0,91006.0,0.35741]
[1764451673405,0.37683329,91007.0,91006.0,0.35741]
[1764451674413,0.37583329,91007.0,91006.0,0.35741]
[1764451674616,0.37683329,91007.0,91006.0,0.35741]
[1764451675419,0.37683329,91007.0,91006.0,0.3714109]
[1764451676414,0.37583329,91007.0,91006.0,0.3714109]
[1764451676618,0.37683329,91007.0,91006.0,0.3714109]
[1764451676920,0.37711287,91007.0,91006.0,0.3714109]
[1764451677508,0.37739206,91007.0,91006.0,0.3714109]
[1764451677915,0.37756131,91007.0,91006.0,0.3714109]
[1764451679622,0.37656131,91007.0,91006.0,0.3714109]
[1764451679823,0.37756131,91007.0,91006.0,0.3714109]
[1764451680218,0.37656131,91007.0,91006.0,0.1965109]
[1764451680420,0.37656131,91007.0,91000.0,0.35741]
[1764451680421,0.3747061,91001.0,91000.0,0.35741]
[1764451680925,0.37656201,91001.0,91000.0,0.35741]
[1764451683526,0.37756201,91001.0,91000.0,0.35741]
[1764451684312,0.37756201,91001.0,91000.0,0.37159987]
[1764451684926,0.37656201,91001.0,91000.0,0.37159987]
[1764451685122,0.37756201,91001.0,91000.0,0.37159987]
[1764451685532,0.37656201,91001.0,91000.0,0.37159987]
[1764451686727,0.37656201,91001.0,91000.0,0.01418987]
[1764451686917,0.82656201,91001.0,91000.0,0.00438867]
[1764451687117,0.3747064,90998.0,90997.0,3e-08]
[1764451687319,0.3747079,90986.0,90985.0,0.35741]
[1764451688027,0.4830385,90981.0,90980.0,0.35741]
[1764451688228,0.4830385,90981.0,90980.0,0.18251]
[1764451688931,0.3747093,90974.0,90973.0,0.35741]
[1764451689229,0.37656521,90974.0,90973.0,0.35741]
[1764451691125,0.37656521,90974.0,90973.0,0.36041]
[1764451692231,0.37656521,90974.0,90973.0,0.37454103]
[1764451692931,0.37686511,90974.0,90973.0,0.37454103]
[1764451706139,0.00215581,90974.0,90973.0,0.37454103]
[1764451706437,0.14695401,90990.0,90989.0,0.33195]
[1764451706625,0.33515483,90990.0,90989.0,0.33195]
[1764451706830,0.34614223,90990.0,90989.0,0.33195]
[1764451707737,0.34714223,90990.0,90989.0,0.33195]
[1764451709845,0.34614223,90990.0,90989.0,0.33295]
[1764451710238,0.34614223,90990.0,90989.0,0.33195]
[1764451710439,0.34714223,90990.0,90989.0,0.33195]
[1764451711648,0.34714223,90990.0,90989.0,0.34705779]
[1764451716549,0.34714223,90990.0,90989.0,0.17585779]
[1764451716945,0.34714223,90990.0,90989.0,0.34705779]
[1764451721952,0.44605223,90990.0,90989.0,0.34705779]
[1764451725161,0.44605223,90990.0,90989.0,0.17585779]
[1764451725563,0.44605223,90990.0,90989.0,0.32706779]
[1764451743881,0.44505223,90990.0,90989.0,0.32706779]
[1764451744077,0.44605223,90990.0,90989.0,0.32706779]
[1764451752086,0.34714223,90990.0,90989.0,0.32706779]
[1764451752990,0.34614223,90990.0,90989.0,0.32706779]
[1764451753192,0.34714223,90990.0,90989.0,0.32706779]
[1764451753689,0.34614223,90990.0,90989.0,0.32706779]
[1764451757292,0.43150223,90990.0,90989.0,0.32706779]
[1764451759286,0.43250223,90990.0,90989.0,0.32706779]
[1764451761597,0.43150223,90990.0,90989.0,0.32706779]
[1764451765202,0.43250223,90990.0,90989.0,0.32706779]
[1764451767795,0.43150223,90990.0,90989.0,0.32706779]
[1764451775807,0.01115223,90990.0,90989.0,0.32706779]
[1764451776497,0.2897063,90999.0,90998.0,0.27216]
[1764451778007,0.2897063,90999.0,90998.0,0.27316]
[1764451778509,0.3695563,90999.0,90998.0,0.27316]
[1764451778908,0.3695563,90999.0,90998.0,0.27216]
[1764451783515,0.3695563,90999.0,90998.0,0.27316]
[1764451783904,0.3695563,90999.0,90998.0,0.27216]
[1764451798220,0.2636173,90991.0,90990.0,0.25411]
[1764451800228,0.2636173,90991.0,90990.0,0.33299954]
[1764451801329,0.2636173,90991.0,90989.0,2e-08]
[1764451801330,0.33317,90990.0,90989.0,2e-08]
[1764451801630,0.33317,90982.0,90981.0,0.33299954]
[1764451802813,0.12358,90982.0,90981.0,0.33399954]
[1764451803027,0.0109881,90984.0,90983.0,0.25411]
[1764451803228,0.1345681,90984.0,90983.0,0.25411]
[1764451803422,0.2636181,90984.0,90983.0,0.25411]
[1764451804027,0.2636181,90984.0,90983.0,0.33299954]
[1764451804228,0.0109881,90984.0,90983.0,0.25411]
[1764451804628,0.0109881,90984.0,90983.0,0.25511]
[1764451805533,0.0109881,90984.0,90983.0,0.25411]
[1764451805729,0.0109881,90984.0,90983.0,0.25611]
[1764451806232,0.0109878,90987.0,90986.0,0.25411]
[1764451806632,0.00016483,90991.0,90990.0,0.25411]
[1764451806829,0.01115213,90991.0,90990.0,0.25411]
[1764451807825,0.01115213,90991.0,90990.0,0.25511]
[1764451809035,0.01115213,90991.0,90990.0,0.25711]
[1764451811937,0.01115213,90991.0,90990.0,0.33384]
[1764451829050,0.00016483,90991.0,90990.0,0.33384]
[1764451829235,0.00016483,90991.0,90990.0,0.43195246]
[1764451829440,0.00016483,90991.0,90990.0,0.33384]
[1764451831252,0.00016483,90991.0,90990.0,0.43228778]
[1764451831453,0.00016483,90991.0,90990.0,0.33384]
[1764451831654,0.00016483,90991.0,90990.0,0.43226963]
[1764451832254,0.00016483,90991.0,90990.0,0.33384]
[1764451836356,0.00016483,90991.0,90990.0,0.43384]
[1764451836950,0.00016483,90991.0,90990.0,0.33384]
[1764451844657,0.00016483,90991.0,90990.0,0.74384]
[1764451848770,0.00016483,90991.0,90990.0,0.91684]
[1764451850572,0.10623483,90991.0,90990.0,0.91684]
[1764451854469,0.21017483,90991.0,90990.0,0.91684]
[1764451861073,0.21017483,90991.0,90990.0,0.84011]
[1764451874473,0.21017483,90991.0,90990.0,0.71229]
[1764451874981,0.21017483,90991.0,90990.0,0.8108]
[1764451875183,0.21017483,90991.0,90990.0,0.90942707]
[1764451875788,0.21017483,90991.0,90990.0,0.90842707]
[1764451876183,0.21017483,90991.0,90990.0,0.8098]
[1764451876383,0.21017483,90991.0,90990.0,0.8088]
[1764451877191,0.21017483,90991.0,90990.0,0.8098]
[1764451878885,0.21017483,90991.0,90990.0,0.8078]
[1764451879090,0.21017483,90991.0,90990.0,0.8088]
[1764451879683,0.21017483,90991.0,90990.0,0.8078]
[1764451879892,0.21017483,90991.0,90990.0,0.8088]
[1764451891297,0.21017483,90991.0,90990.0,0.8078]
[1764451891498,0.21017483,90991.0,90990.0,0.8088]
[1764451891898,0.21017483,90991.0,90990.0,0.8078]
[1764451892094,0.21017483,90991.0,90990.0,0.8088]
[1764451893002,0.21017483,90991.0,90990.0,0.8078]
[1764451893303,0.21017483,90991.0,90990.0,0.8088]
[1764451894502,0.21017483,90991.0,90990.0,0.4688]
[1764451894705,0.21017483,90991.0,90990.0,0.37029]
[1764451895004,0.21017483,90991.0,90990.0,0.29929]
[1764451895200,0.21017483,90991.0,90990.0,0.001]
[1764451895604,0.24585,90982.0,90981.0,0.01591565]
[1764451895805,0.18991,90973.0,90971.0,0.07886224]
[1764451896114,0.18991,90973.0,90970.0,0.07886224]
[1764451896297,0.18991,90973.0,90967.0,0.07886224]
[1764451896498,0.18991,90968.0,90967.0,0.07886224]
[1764451896695,0.18991,90968.0,90966.0,0.00027483]
[1764451896696,0.18991,90967.0,90966.0,0.00027483]
[1764451896896,0.18991,90967.0,90966.0,0.01782825]
[1764451897408,0.58991,90967.0,90966.0,0.01782825]
[1764451898010,0.58991,90967.0,90966.0,0.02282825]
[1764451898910,0.58991,90967.0,90966.0,0.00124915]
[1764451899298,0.34991,90967.0,90966.0,0.00124915]
[1764451901205,0.18991,90967.0,90966.0,0.62013915]
[1764451901398,0.18991,90967.0,90966.0,0.34013915]
[1764451903106,0.18991,90967.0,90966.0,0.59013915]
[1764451916910,0.18991,90967.0,90966.0,0.31013915]
[1764451919919,0.18991,90967.0,90966.0,0.19013915]
[1764451920517,0.18991,90967.0,90966.0,0.00124915]
[1764451921423,0.18991,90967.0,90966.0,0.08958915]
[1764451922112,0.18991,90967.0,90966.0,0.17308915]
[1764451930634,0.18991,90967.0,90966.0,0.52308915]
[1764451933327,0.18991,90967.0,90966.0,0.6016645]
[1764451937330,0.0109901,90968.0,90967.0,0.16419]
[1764451937632,0.0109901,90968.0,90967.0,0.54419]
[1764451938133,0.0938101,90968.0,90967.0,0.54419]
[1764451938538,0.0938101,90968.0,90967.0,0.54619]
[1764451940027,0.0109901,90968.0,90967.0,0.54619]
[1764451944927,0.0923901,90968.0,90967.0,0.54619]
[1764451945327,0.0109901,90968.0,90967.0,0.54619]
[1764451945527,0.0444,90981.0,90967.0,0.54619]
[1764451945528,0.15868,90981.0,90970.0,0.00999999]
[1764451945732,0.19129225,90990.0,90970.0,0.00999999]
[1764451945733,0.1696686,90980.0,90979.0,0.15551]
[1764451945933,0.1696686,90980.0,90979.0,0.41551]
[1764451947447,0.1716686,90980.0,90979.0,0.41551]
[1764451947947,0.0129886,90980.0,90979.0,0.41551]
[1764451948538,0.0119886,90980.0,90979.0,0.41551]
[1764451948745,0.0933886,90980.0,90979.0,0.41551]
[1764451949325,0.0119886,90980.0,90979.0,0.41551]
[1764451950536,0.0109886,90980.0,90979.0,0.41551]
[1764451950839,0.0109886,90980.0,90979.0,0.41651]
[1764451951040,0.0109886,90980.0,90979.0,0.41751]
[1764451951835,0.0109883,90983.0,90982.0,0.15551]
[1764451952034,0.0109883,90983.0,90982.0,0.58551]
[1764451952230,0.0109883,90983.0,90982.0,0.66425896]
[1764451952832,0.0109883,90983.0,90982.0,0.58551]
[1764451953939,0.0109883,90983.0,90982.0,0.58651]
[1764451954440,0.0109883,90983.0,90982.0,0.66621005]
[1764451954828,0.0444,90996.0,90982.0,0.66621005]
[1764451955036,0.0109878,90988.0,90987.0,0.26663005]
[1764451955240,0.01115213,90991.0,90990.0,0.19239]
[1764451955435,0.01115213,90991.0,90990.0,0.56239]
[1764451956151,0.20308,91005.0,91004.0,0.15551]
[1764451956442,0.2140656,91005.0,91004.0,0.15551]
[1764451957637,0.2180656,91005.0,91004.0,0.15551]
[1764451960944,0.2180656,91005.0,91004.0,0.1735664]
[1764451967558,0.1736656,91005.0,91004.0,0.5435664]
[1764451972466,0.0864556,91005.0,91004.0,0.5435664]
[1764451972758,0.1602156,91005.0,91004.0,0.5435664]
[1764451975656,0.1614595,91005.0,91004.0,0.5435664]
[1764451977349,0.0162295,91005.0,91004.0,0.5435664]
[1764451977748,0.0052439,91005.0,91004.0,0.5435664]
[1764451978054,0.0109851,91010.0,91005.0,0.14695]
[1764451978257,0.0109851,91010.0,91005.0,0.59565005]
[1764451978459,0.0109853,91008.0,91005.0,0.59565005]
[1764451979161,0.00427471,91006.0,91005.0,0.59565005]
[1764451980157,0.07574471,91006.0,91005.0,0.59565005]
[1764451980457,0.07574471,91006.0,91005.0,0.51695]
[1764451980653,0.14950471,91006.0,91005.0,0.51695]
[1764451983351,0.14950471,91006.0,91005.0,0.68995]
[1764451984959,0.14950471,91006.0,91004.0,0.0180564]
[1764451984960,0.2009556,91005.0,91004.0,0.0180564]
[1764451985261,0.2009556,91005.0,91004.0,0.17296]
[1764451987267,0.2009562,91000.0,90999.0,0.22567936]
[1764451987457,0.2009562,91000.0,90999.0,0.49695]
[1764451988367,0.2009562,91000.0,90999.0,0.29695]
[1764451989065,0.2009562,91000.0,90999.0,0.01796877]
[1764451989268,0.2009562,91000.0,90997.0,0.01731]
[1764451989269,0.14523,90998.0,90997.0,0.01731]
[1764451989567,0.35523,90998.0,90997.0,0.01731]
[1764451991663,0.14823,90998.0,90997.0,0.01731]
[1764451993072,0.14823,90998.0,90997.0,0.15376]
[1764451993868,0.14723,90998.0,90997.0,0.17168146]
[1764451994470,0.14623,90998.0,90997.0,0.17168146]
[1764451995973,0.14523,90998.0,90997.0,0.17168146]
[1764451996174,0.14626572,90998.0,90997.0,0.17168146]
[1764451996372,0.14643834,90998.0,90997.0,0.17168146]
[1764451996573,0.14653124,90998.0,90997.0,0.17168146]
[1764452015494,0.14653124,90998.0,90997.0,0.25036946]
[1764452020498,0.14653124,90998.0,90997.0,0.17168146]
[1764452026599,0.00130124,90998.0,90997.0,0.60168146]
[1764452027102,0.05887124,90998.0,90997.0,0.60168146]
[1764452027403,0.11598124,90998.0,90997.0,0.700285]
[1764452028503,0.11598124,90998.0,90997.0,0.60168146]
[1764452030901,0.05887124,90998.0,90997.0,0.60168146]
[1764452032003,0.00130124,90998.0,90997.0,0.60168146]
[1764452035908,0.00027471,91006.0,91005.0,0.11828]
[1764452036211,0.05784471,91006.0,91005.0,0.49828]
[1764452036706,0.11495471,91006.0,91005.0,0.49828]
[1764452037300,0.11695471,91006.0,91005.0,0.49828]
[1764452039112,0.11695471,91006.0,91005.0,0.51559]
[1764452041112,0.05984471,91006.0,91005.0,0.51559]
[1764452041312,0.05984471,91006.0,91005.0,0.5265756]
[1764452041510,0.05984471,91006.0,91005.0,0.51559]
[1764452041812,0.00227471,91006.0,91005.0,0.51559]
[1764452042614,0.05984471,91006.0,91005.0,0.51559]
[1764452043007,0.11695471,91006.0,91005.0,0.51559]
[1764452052011,0.00227471,91006.0,91005.0,0.51559]
[1764452052220,0.00227471,91006.0,91005.0,0.60209128]
[1764452052522,0.06871943,91014.0,91013.0,0.11828]
[1764452052722,0.12582943,91014.0,91013.0,0.69124]
[1764452054117,0.15978943,91014.0,91013.0,0.69124]
[1764452054517,0.16378943,91014.0,91013.0,0.69124]
[1764452054922,0.15978943,91014.0,91013.0,0.69124]
[1764452055122,0.16278943,91014.0,91013.0,0.69124]
[1764452061424,0.01414943,91014.0,91013.0,0.69124]
[1764452061618,0.12027943,91014.0,91013.0,0.69124]
[1764452061823,0.12027943,91014.0,91013.0,0.70932615]
[1764452062126,0.15423943,91014.0,91013.0,0.70932615]
[1764452064626,0.15423943,91014.0,91013.0,0.72663615]
[1764452070829,0.15423943,91014.0,91013.0,0.35835615]
[1764452071032,0.15423943,91014.0,91013.0,0.28725198]
[1764452073837,0.15423943,91014.0,91013.0,0.20835615]
[1764452075141,0.15423943,91014.0,91013.0,0.03539615]
[1764452078340,0.15423943,91014.0,91013.0,0.07033615]
[1764452079839,0.15423943,91014.0,91013.0,0.10527615]
[1764452086042,0.15123943,91014.0,91013.0,0.10527615]
[1764452086642,0.15123943,91014.0,91013.0,0.10627615]
[1764452089646,0.15123943,91014.0,91013.0,0.10527615]
[1764452089945,0.15123943,91014.0,91013.0,0.10627615]
[1764452090246,0.15123943,91014.0,91013.0,0.10527615]
[1764452090543,0.15123943,91014.0,91013.0,0.10627615]
[1764452095156,0.15123943,91014.0,91013.0,0.18517198]
[1764452095638,0.15123943,91014.0,91013.0,0.18417198]
[1764452095844,0.15123943,91014.0,91013.0,0.18517198]
[1764452096154,0.15123943,91014.0,91013.0,0.52627615]
[1764452096352,0.06316943,91014.0,91013.0,0.52627615]
[1764452096749,0.10992943,91014.0,91013.0,0.52527615]
[1764452097053,0.10992943,91014.0,91013.0,0.52627615]
[1764452098748,0.13978943,91014.0,91013.0,0.52627615]
[1764452102468,0.0109838,91021.0,91014.0,0.0109845]
[1764452102655,0.1352423,91032.0,91031.0,0.05082]
[1764452102860,0.1352423,91032.0,91031.0,0.52966406]
[1764452103061,0.0586223,91032.0,91031.0,0.52966406]
[1764452103254,0.1352423,91032.0,91031.0,0.52966406]
[1764452103449,0.1352423,91032.0,91031.0,0.45082]
[1764452104255,0.1362423,91032.0,91031.0,0.45082]
[1764452105164,0.1402423,91032.0,91031.0,0.45082]
[1764452106853,0.1402423,91032.0,91031.0,0.46813]
[1764452107661,0.1402423,91032.0,91031.0,0.15813]
[1764452108556,0.1402423,91032.0,91031.0,0.40813]
[1764452109965,0.1402423,91032.0,91031.0,0.23813]
[1764452110864,0.1402423,91032.0,91031.0,0.25504038]
[1764452111768,0.1402423,91032.0,91031.0,0.48504038]
[1764452113965,0.1402423,91032.0,91031.0,0.27504038]
[1764452116167,0.1402423,91032.0,91031.0,0.49504038]
[1764452116670,0.1402423,91032.0,91031.0,0.39504038]
[1764452117073,0.1402423,91032.0,91031.0,0.16504038]
[1764452118174,0.1402423,91032.0,91031.0,0.45504038]
[1764452128183,0.1402423,91032.0,91031.0,0.15504038]
[1764452129181,0.11685,91023.0,91022.0,0.00016483]
[1764452129985,0.11685,91023.0,91022.0,0.04149483]
[1764452130477,0.11685,91023.0,91022.0,0.09985142]
[1764452130681,0.11785,91023.0,91022.0,0.09985142]
[1764452131669,0.001,91023.0,91022.0,0.51985142]
[1764452131873,0.001,91023.0,91022.0,0.59874186]
[1764452132279,0.010983,91027.0,91026.0,0.08266]
[1764452132492,0.010983,91027.0,91026.0,0.46266]
[1764452133387,0.012983,91027.0,91026.0,0.46266]
[1764452136990,0.002,91027.0,91026.0,0.46266]
[1764452137881,0.002,91027.0,91026.0,0.4736431]
[1764452141597,0.09176,91027.0,91026.0,0.46266]
[1764452141791,0.0109821,91035.0,91026.0,0.46266]
[1764452141993,0.0109821,91035.0,91034.0,0.08266]
[1764452142186,0.0558521,91035.0,91034.0,0.51266]
[1764452142390,0.1007421,91035.0,91034.0,0.51266]
[1764452142596,0.08976,91035.0,91034.0,0.59151778]
[1764452142791,0.0109815,91039.0,91034.0,0.50885778]
[1764452142997,0.002,91035.0,91034.0,0.50681]
[1764452143196,0.04248,91035.0,91034.0,0.50681]
[1764452143406,0.04448,91035.0,91034.0,0.50681]
[1764452143890,0.08713,91035.0,91034.0,0.50681]
[1764452144096,0.08813,91035.0,91034.0,0.50681]
[1764452149407,0.08813,91035.0,91034.0,0.52264887]
[1764452151508,0.04548,91035.0,91034.0,0.52264887]
[1764452151812,0.1116,91035.0,91034.0,0.52264887]
[1764452152716,0.08813,91035.0,91034.0,0.52264887]
[1764452152917,0.04548,91035.0,91034.0,0.52264887]
[1764452154217,0.08813,91035.0,91034.0,0.52264887]
[1764452159718,0.005,91035.0,91034.0,0.52264887]
[1764452161021,0.04448,91035.0,91034.0,0.52264887]
[1764452161222,0.04148,91035.0,91034.0,0.52264887]
[1764452161429,0.08413,91035.0,91034.0,0.52264887]
[1764452161817,0.04148,91035.0,91034.0,0.52264887]
[1764452162525,0.08413,91035.0,91034.0,0.52264887]
[1764452163922,0.1076,91035.0,91034.0,0.52264887]
[1764452167432,0.001,91035.0,91034.0,0.52264887]
[1764452168022,0.04148,91035.0,91034.0,0.52264887]
[1764452168532,0.08413,91035.0,91034.0,0.52264887]
[1764452170630,0.1076,91035.0,91034.0,0.52264887]
[1764452172931,0.10882053,91035.0,91034.0,0.52264887]
[1764452176541,0.10887729,91035.0,91034.0,0.52264887]
[1764452182841,0.04275729,91035.0,91034.0,0.52264887]
[1764452183037,0.00227729,91035.0,91034.0,0.52264887]
[1764452183240,0.00227729,91035.0,91034.0,0.62125241]
[1764452184134,0.00016483,91041.0,91040.0,0.0517414]
[1764452184339,0.00016483,91041.0,91040.0,0.5846614]
[1764452185143,0.03526483,91041.0,91040.0,0.5846614]
[1764452185344,0.03626483,91041.0,91040.0,0.5846614]
[1764452185541,0.03826483,91041.0,91040.0,0.5846614]
[1764452187236,0.07402483,91041.0,91040.0,0.5846614]
[1764452199252,0.07202483,91041.0,91040.0,0.5856614]
[1764452199856,0.07102483,91041.0,91040.0,0.5856614]
[1764452201553,0.09369483,91041.0,91040.0,0.5856614]
[1764452212463,0.09369483,91041.0,91040.0,0.68431717]
[1764452212967,0.09369483,91041.0,91040.0,0.5856614]
[1764452213461,0.09369483,91041.0,91040.0,0.68431717]
[1764452213969,0.03526483,91041.0,91040.0,0.68431717]
[1764452214871,0.06886483,91041.0,91040.0,0.68431717]
[1764452215265,0.00016483,91041.0,91040.0,0.68431717]
[1764452215469,0.06645483,91041.0,91040.0,0.68431717]
[1764452216673,0.08677483,91041.0,91040.0,0.68431717]
[1764452219959,0.08677483,91041.0,91040.0,0.67333577]
[1764452220768,0.08677483,91041.0,91040.0,0.48003577]
[1764452220972,0.08677483,91041.0,91040.0,0.63253577]
[1764452221171,0.08677483,91041.0,91040.0,0.546]
[1764452221772,0.08677483,91041.0,91040.0,0.55812]
[1764452223666,0.08806125,91041.0,91040.0,0.53388]
[1764452224174,0.08828387,91041.0,91040.0,0.53388]
[1764452224375,0.08828387,91041.0,91040.0,0.546]
[1764452225674,0.08828387,91041.0,91040.0,0.55812]
[1764452227579,0.08828387,91041.0,91040.0,0.001]
[1764452235788,0.08828387,91041.0,91040.0,0.37494]
[1764452236684,0.00167387,91041.0,91040.0,0.37494]
[1764452237282,0.03308387,91041.0,91040.0,0.37494]
[1764452238486,0.06454387,91041.0,91040.0,0.37494]
[1764452242490,0.06303483,91041.0,91040.0,0.37494]
[1764452242690,0.06460075,91041.0,91040.0,0.37494]
[1764452242892,0.08205075,91041.0,91040.0,0.37494]
[1764452246791,0.05059075,91041.0,91040.0,0.37494]
[1764452246990,0.08194075,91041.0,91040.0,0.37494]
[1764452247789,0.08194075,91041.0,91040.0,0.19388]
[1764452249190,0.08194075,91041.0,91040.0,0.48388]
[1764452261409,0.03157075,91041.0,91040.0,0.48388]
[1764452261905,0.06292075,91041.0,91040.0,0.48388]
[1764452262708,0.00173075,91041.0,91040.0,0.48388]
[1764452263209,0.03157075,91041.0,91040.0,0.48388]
[1764452263408,0.03157075,91041.0,91040.0,0.55388]
[1764452263409,0.05924075,91041.0,91040.0,0.55388]
[1764452263598,0.05924075,91041.0,91040.0,0.381]
[1764452264310,0.05924075,91041.0,91040.0,0.459857]
[1764452265410,0.05924075,91041.0,91040.0,0.381]
[1764452266611,0.05924075,91041.0,91040.0,0.021]
[1764452266810,0.05924075,91041.0,91040.0,0.0999266]
[1764452267207,0.05924075,91041.0,91040.0,0.021]
[1764452269513,0.05960154,91041.0,91040.0,0.021]
[1764452269911,0.05995999,91041.0,91040.0,0.021]
[1764452271603,0.05995999,91041.0,91040.0,0.321]
[1764452273606,0.06005026,91041.0,91040.0,0.321]
[1764452273813,0.06014053,91041.0,91040.0,0.321]
[1764452279621,0.06014053,91041.0,91040.0,0.001]
[1764452280017,0.07606053,91041.0,91040.0,0.001]
[1764452281322,0.07606053,91041.0,91030.0,0.00999999]
[1764452281323,0.0671433,91024.0,91014.0,0.09847468]
[1764452281520,0.0109852,91008.0,91007.0,0.09847468]
[1764452281717,0.0671452,91008.0,91007.0,0.55283468]
[1764452281917,0.0696109,91008.0,91007.0,0.55283468]
[1764452282321,0.0696109,91008.0,91007.0,0.45436]
[1764452282519,0.0671452,91008.0,91007.0,0.45436]
[1764452282718,0.06993886,91008.0,91007.0,0.45436]
[1764452283129,0.07006733,91008.0,91007.0,0.45536]
[1764452284423,0.07006733,91008.0,91007.0,0.55983468]
[1764452286728,0.01390733,91008.0,91007.0,0.57512075]
[1764452287226,0.00292213,91008.0,91007.0,0.97512075]
[1764452287617,0.00292213,91008.0,91007.0,0.87664607]
[1764452287816,0.00292213,91008.0,91007.0,0.97661757]
[1764452289515,0.00292213,91008.0,91007.0,0.87664607]
[1764452294226,0.00292213,91008.0,91007.0,0.97661757]
[1764452294727,0.00292213,91008.0,91007.0,0.87664607]
[1764452298037,0.00292213,91008.0,91007.0,1.04956607]
[1764452299437,0.00292213,91008.0,91007.0,0.64956607]
[1764452300636,0.06440483,91017.0,91016.0,0.06492846]
[1764452300836,0.06440483,91017.0,91016.0,0.64784846]
[1764452301941,0.06440483,91017.0,91016.0,0.65184846]
[1764452302641,0.00016483,91017.0,91016.0,0.66400846]
[1764452303433,0.00016483,91017.0,91016.0,0.66500846]
[1764452303937,0.03147483,91017.0,91016.0,0.66600846]
[1764452304143,0.03147483,91017.0,91016.0,0.65484846]
[1764452304538,0.06440483,91017.0,91016.0,0.65484846]
[1764452305836,0.03147483,91017.0,91016.0,0.65484846]
[1764452306437,0.06440483,91017.0,91016.0,0.65484846]
[1764452306638,0.06440483,91017.0,91016.0,0.65384846]
[1764452307239,0.00016483,91017.0,91016.0,0.65384846]
[1764452307443,0.00016483,91017.0,91016.0,0.65284846]
[1764452308547,0.00016483,91017.0,91016.0,0.66929846]
[1764452309248,0.00016483,91017.0,91016.0,0.76885731]
[1764452310340,0.00016483,91017.0,91016.0,0.76785731]
[1764452310545,0.00016483,91017.0,91016.0,0.76885731]
[1764452312552,0.06440483,91017.0,91016.0,0.75340731]
[1764452313149,0.06440483,91017.0,91016.0,0.65484846]
[1764452313943,0.06440483,91017.0,91016.0,0.65384846]
[1764452314247,0.03147483,91017.0,91016.0,0.65384846]
[1764452314657,0.00016483,91017.0,91016.0,0.65384846]
[1764452315053,0.00016483,91017.0,91016.0,0.65284846]
[1764452315655,0.00016483,91017.0,91016.0,0.66665846]
[1764452316751,0.08431,91036.0,91035.0,0.0679]
[1764452316953,0.11144121,91036.0,91035.0,0.4979]
[1764452317252,0.08431,91036.0,91035.0,0.4979]
[1764452317456,0.0952919,91036.0,91035.0,0.4979]
[1764452319956,0.0952919,91036.0,91035.0,0.4989]
[1764452324557,0.0952919,91036.0,91035.0,0.51524877]
[1764452324949,0.0752219,91036.0,91035.0,0.51524877]
[1764452325145,0.03131,91036.0,91035.0,0.51524877]
[1764452325348,0.0109816,91039.0,91035.0,0.51524877]
[1764452325557,0.0724916,91039.0,91038.0,0.06149]
[1764452325749,0.0724916,91039.0,91038.0,0.49149]
[1764452327858,0.0724916,91039.0,91038.0,0.49249]
[1764452329556,0.00016483,91045.0,91038.0,0.49249]
[1764452329557,0.0109812,91042.0,91038.0,0.431]
[1764452329763,0.0109812,91042.0,91041.0,0.06149]
[1764452329953,0.0109812,91042.0,91041.0,0.46149]
[1764452331755,0.06167483,91045.0,91044.0,0.06149]
[1764452332059,0.07265563,91045.0,91044.0,0.46149]
[1764452333754,0.07365563,91045.0,91044.0,0.46149]
[1764452337458,0.07365563,91045.0,91044.0,0.47149]
[1764452346881,0.04217563,91045.0,91044.0,0.47149]
[1764452347081,0.01214563,91045.0,91044.0,0.47149]
[1764452347280,0.04217563,91045.0,91044.0,0.47149]
[1764452348084,0.00116483,91045.0,91044.0,0.47797]
[1764452351891,0.00116483,91045.0,91044.0,0.4889509]
[1764452354689,0.00116483,91045.0,91044.0,0.4824709]
[1764452354992,0.05497483,91045.0,91044.0,0.4824709]
[1764452356783,0.02788483,91045.0,91044.0,0.4824709]
[1764452356982,0.00116483,91045.0,91044.0,0.4824709]
[1764452357991,0.02788483,91045.0,91044.0,0.4824709]
[1764452359088,0.02788483,91045.0,91044.0,0.47149]
[1764452359289,0.05497483,91045.0,91044.0,0.47149]
[1764452361288,0.02788483,91045.0,91044.0,0.47149]
[1764452362992,0.00116483,91045.0,91044.0,0.47149]
[1764452363292,0.00116483,91045.0,91044.0,0.55037342]
[1764452364092,0.05567483,91045.0,91044.0,0.55037342]
[1764452368984,0.05567483,91045.0,91044.0,0.52076342]
[1764452369186,0.05567483,91045.0,91044.0,0.54717342]
[1764452371398,0.05567483,91045.0,91044.0,0.46829]
[1764452377600,0.02744483,91045.0,91044.0,0.46829]
[1764452379398,0.05567483,91045.0,91044.0,0.46829]
[1764452391806,0.05567483,91045.0,91044.0,0.64117]
[1764452393609,0.02744483,91045.0,91044.0,0.64117]
[1764452394709,0.00116483,91045.0,91044.0,0.64117]
[1764452394907,0.00116483,91045.0,91044.0,0.65295]
[1764452396110,0.00116483,91045.0,91044.0,0.64117]
[1764452402022,0.02709483,91045.0,91044.0,0.64117]
[1764452402605,0.00116483,91045.0,91044.0,0.64117]
[1764452403206,0.02709483,91045.0,91044.0,0.64117]
[1764452405208,0.00116483,91045.0,91044.0,0.64117]
[1764452406013,0.00116483,91045.0,91044.0,0.65295]
[1764452408615,0.00116483,91045.0,91044.0,0.64117]
[1764452408819,0.02709483,91045.0,91044.0,0.64117]
[1764452409622,0.05212483,91045.0,91044.0,0.64117]
[1764452413905,0.00116483,91045.0,91044.0,0.64117]
[1764452414715,0.02421483,91045.0,91044.0,0.64117]
[1764452418419,0.04743483,91045.0,91044.0,0.64117]
[1764452420213,0.04743483,91045.0,91044.0,0.58288]